Workbook

Sheet DATA DAN BAGAN BIAYA
B1: ANALISIS BIAYA - PARETO
B2: Bagan Pareto untuk Persentase Kumulatif Biaya Tahunan di semua Pusat Biaya ada di sel B2 hingga E3.
B4: ANALISIS BIAYA
B5: Pusat Biaya | C5: Biaya Tahunan | D5: Persentase dari Total | E5: Persentase Kumulatif
B6: Komponen dan materi | C6: Rp1,325,000.00 | D6: =IFERROR(Data[[#This Row],[Biaya Tahunan ]]/SUM(Data[[Biaya Tahunan ]]), "") -> 31.17% | E6: =IFERROR(SUM(INDEX(Data[Persentase dari Total],1):Data[[#This Row],[Persentase dari Total]]), "") -> 31.17%
B7: Perlengkapan manufaktur | C7: Rp900,500.00 | D7: =IFERROR(Data[[#This Row],[Biaya Tahunan ]]/SUM(Data[[Biaya Tahunan ]]), "") -> 21.19% | E7: =IFERROR(SUM(INDEX(Data[Persentase dari Total],1):Data[[#This Row],[Persentase dari Total]]), "") -> 52.36%
B8: Gaji | C8: Rp575,000.00 | D8: =IFERROR(Data[[#This Row],[Biaya Tahunan ]]/SUM(Data[[Biaya Tahunan ]]), "") -> 13.53% | E8: =IFERROR(SUM(INDEX(Data[Persentase dari Total],1):Data[[#This Row],[Persentase dari Total]]), "") -> 65.89%
B9: Pemeliharaan | C9: Rp395,000.00 | D9: =IFERROR(Data[[#This Row],[Biaya Tahunan ]]/SUM(Data[[Biaya Tahunan ]]), "") -> 9.29% | E9: =IFERROR(SUM(INDEX(Data[Persentase dari Total],1):Data[[#This Row],[Persentase dari Total]]), "") -> 75.18%
B10: Sewa kantor | C10: Rp295,000.00 | D10: =IFERROR(Data[[#This Row],[Biaya Tahunan ]]/SUM(Data[[Biaya Tahunan ]]), "") -> 6.94% | E10: =IFERROR(SUM(INDEX(Data[Persentase dari Total],1):Data[[#This Row],[Persentase dari Total]]), "") -> 82.12%
B11: Sewa gudang | C11: Rp250,000.00 | D11: =IFERROR(Data[[#This Row],[Biaya Tahunan ]]/SUM(Data[[Biaya Tahunan ]]), "") -> 5.88% | E11: =IFERROR(SUM(INDEX(Data[Persentase dari Total],1):Data[[#This Row],[Persentase dari Total]]), "") -> 88.00%
B12: Asuransi | C12: Rp180,000.00 | D12: =IFERROR(Data[[#This Row],[Biaya Tahunan ]]/SUM(Data[[Biaya Tahunan ]]), "") -> 4.23% | E12: =IFERROR(SUM(INDEX(Data[Persentase dari Total],1):Data[[#This Row],[Persentase dari Total]]), "") -> 92.24%
B13: Keuntungan dan pensiun | C13: Rp130,000.00 | D13: =IFERROR(Data[[#This Row],[Biaya Tahunan ]]/SUM(Data[[Biaya Tahunan ]]), "") -> 3.06% | E13: =IFERROR(SUM(INDEX(Data[Persentase dari Total],1):Data[[#This Row],[Persentase dari Total]]), "") -> 95.29%
B14: Kendaraan | C14: Rp125,000.00 | D14: =IFERROR(Data[[#This Row],[Biaya Tahunan ]]/SUM(Data[[Biaya Tahunan ]]), "") -> 2.94% | E14: =IFERROR(SUM(INDEX(Data[Persentase dari Total],1):Data[[#This Row],[Persentase dari Total]]), "") -> 98.24%
B15: Riset | C15: Rp75,000.00 | D15: =IFERROR(Data[[#This Row],[Biaya Tahunan ]]/SUM(Data[[Biaya Tahunan ]]), "") -> 1.76% | E15: =IFERROR(SUM(INDEX(Data[Persentase dari Total],1):Data[[#This Row],[Persentase dari Total]]), "") -> 100.00%
B16: Total | C16: =SUBTOTAL(109,Data[[Biaya Tahunan ]]) -> Rp4,250,500.00 | D16: =SUBTOTAL(109,Data[Persentase dari Total]) -> 100.00%
